bitfinex/quotes_SOLUSD_20260113
["timestamp","ask_amount","ask_price","bid_price","bid_amount"]
[1768319220854,7.72419358,142.82,142.77,0.70576964]
[1768319221148,6.10444226,142.83,142.78,0.70576964]
[1768319221653,5.38215899,142.8,142.76,0.70576964]
[1768319221845,0.72228327,142.81,142.76,6.08792863]
[1768319222041,0.72228327,142.82,142.77,6.08792863]
[1768319222242,7.72370765,142.83,142.77,0.70576964]
[1768319222450,5.38215899,142.82,142.77,0.70576964]
[1768319222650,0.72228327,142.82,142.77,0.70576964]
[1768319222957,6.10444226,142.8,142.75,13.48576964]
[1768319223332,0.72228327,142.8,142.75,18.86792863]
[1768319223932,6.10444226,142.8,142.75,13.48576964]
[1768319224854,7.00329154,142.79,142.75,13.48576964]
[1768319225150,13.09808027,142.79,142.75,12.78]
[1768319225330,13.09808027,142.79,142.71,7.00715405]
[1768319225331,0.71262974,142.77,142.71,7.00715405]
[1768319225532,6.09478873,142.77,142.72,13.48333299]
[1768319225751,0.71262974,142.76,142.72,12.78]
[1768319225937,6.09478873,142.74,142.7,1e-08]
[1768319226250,0.71262974,142.73,142.7,1e-08]
[1768319226753,6.09478873,142.75,142.7,5.382159]
[1768319226955,0.71262974,142.75,142.71,5.38215899]
[1768319227453,13.09908094,142.77,142.71,5.38215899]
[1768319227635,6.09478873,142.76,142.71,6.08549198]
[1768319227840,0.71262974,142.76,142.71,6.08549198]
[1768319228352,13.09874262,142.78,142.72,6.08549198]
[1768319228939,0.71262974,142.78,142.73,13.48333299]
[1768319229143,0.71262974,142.75,142.7,12.38979886]
[1768319229350,6.09478873,142.74,142.7,1e-08]
[1768319229957,0.71262974,142.73,142.7,1e-08]
[1768319230551,6.09478873,142.73,142.7,1e-08]
[1768319230766,0.71262974,142.72,142.7,1e-08]
[1768319231561,5.38215899,142.71,142.66,0.2]
[1768319231858,5.38215899,142.68,142.66,0.2]
[1768319232055,5.38215899,142.69,142.66,0.2]
[1768319232256,6.09478873,142.7,142.66,0.2]
[1768319232650,0.71262974,142.7,142.66,0.2]
[1768319233362,0.71262974,142.67,142.66,0.2]
[1768319233561,0.71262974,142.67,142.62,26.07672106]
[1768319233768,0.71262974,142.67,142.63,5.38215899]
[1768319233974,0.71262974,142.67,142.63,12.39324678]
[1768319234456,0.71262974,142.68,142.63,12.39324678]
[1768319234657,0.71262974,142.68,142.63,13.09657977]
[1768319235860,0.71262974,142.66,142.62,7.21161523]
[1768319236256,0.71262974,142.66,142.62,12.59377422]
[1768319236442,13.04583509,142.68,142.62,13.30651302]
[1768319236642,5.38215899,142.69,142.64,0.7127388]
[1768319236959,6.03671789,142.69,142.64,0.7127388]
[1768319237158,30.29845032,142.71,142.64,0.7127388]
[1768319237159,13.04457508,142.7,142.65,0.7127388]
[1768319237464,5.38215899,142.69,142.65,0.7127388]
[1768319237849,6.03671789,142.69,142.63,13.10599041]
[1768319238040,6.03671789,142.69,142.64,6.09489779]
[1768319238243,6.03671789,142.69,142.64,0.7127388]
[1768319239383,13.04520612,142.69,142.64,0.7127388]
[1768319240354,0.6545589,142.68,142.63,12.39325161]
[1768319240759,0.6545589,142.68,142.63,13.10599041]
[1768319241468,0.6545589,142.68,142.64,2.26325596]
[1768319241971,0.6545589,142.68,142.63,9.98708738]
[1768319242359,0.6545589,142.67,142.62,2.46325596]
[1768319242658,7.66389075,142.67,142.62,0.2]
[1768319242867,9.92714671,142.67,142.62,0.2]
[1768319243049,7.66389075,142.67,142.62,0.2]
[1768319243246,0.6545589,142.66,142.62,0.2]
[1768319243570,2.91781486,142.63,142.59,0.2]
[1768319243777,2.91781486,142.65,142.6,0.7127388]
[1768319244272,0.6545589,142.64,142.6,0.7127388]
[1768319244456,0.6545589,142.64,142.59,7.21311292]
[1768319244649,0.6545589,142.64,142.59,9.47636888]
[1768319244849,0.6545589,142.64,142.59,7.92585172]
[1768319245063,0.6545589,142.64,142.59,10.18910768]
[1768319245264,0.6545589,142.64,142.6,0.7127388]
[1768319245469,2.91781486,142.66,142.61,0.7127388]
[1768319245673,9.92751301,142.66,142.61,2.97599476]
[1768319245970,9.92751301,142.66,142.61,0.7127388]
[1768319246564,2.91781486,142.66,142.61,2.97599476]
[1768319246872,0.6545589,142.65,142.61,0.7127388]
[1768319247172,0.6545589,142.65,142.61,7.72486722]
[1768319247370,0.6545589,142.68,142.63,0.7127388]
[1768319247575,0.6545589,142.68,142.63,5.39128771]
[1768319248277,0.6545589,142.67,142.62,6.10402651]
[1768319248647,0.6545589,142.67,142.63,5.39128771]
[1768319249061,7.66374513,142.67,142.62,0.7127388]
[1768319249262,0.6545589,142.65,142.6,7.72514991]
[1768319249458,0.6545589,142.65,142.61,5.39128771]
[1768319249675,0.6545589,142.65,142.6,6.10402651]
[1768319249974,0.6545589,142.61,142.59,0.2]
[1768319250165,0.6545589,142.63,142.6,5.39128771]
[1768319250569,0.6545589,142.63,142.59,6.30402651]
[1768319250968,18.82584661,142.65,142.6,7.72534671]
[1768319251271,7.66477261,142.65,142.6,6.10402651]
[1768319251476,0.6545589,142.65,142.61,5.39128771]
[1768319251874,7.6647643,142.65,142.61,5.39128771]
[1768319252585,13.05605201,142.65,142.6,0.7127388]
[1768319252882,0.6545589,142.64,142.59,6.30402651]
[1768319253178,6.04584661,142.62,142.59,0.2]
[1768319253777,0.6545589,142.62,142.59,0.2]
[1768319254077,7.66570662,142.63,142.59,0.9127388]
[1768319254260,0.6545589,142.63,142.59,0.9127388]
[1768319254462,0.6545589,142.63,142.59,6.30402651]
[1768319254664,0.6545589,142.63,142.59,0.9127388]
[1768319254876,0.6545589,142.63,142.59,6.30402651]
[1768319255182,7.66572018,142.63,142.59,0.9127388]
[1768319255382,7.66572018,142.63,142.59,0.2]
[1768319255583,13.05700789,142.63,142.59,0.2]
[1768319255983,0.66706584,142.61,142.59,0.2]
[1768319256979,25.20609643,142.63,142.59,0.2]
[1768319257183,13.07078019,142.61,142.59,0.2]
[1768319257560,13.07078019,142.61,142.56,5.59128771]
[1768319257561,0.66706584,142.6,142.56,0.2]
[1768319257764,6.05835355,142.6,142.56,0.2]
[1768319257957,0.66706584,142.6,142.56,6.27348238]
[1768319258276,0.66706584,142.6,142.56,0.2]
[1768319258785,7.67880054,142.62,142.57,7.69621664]
[1768319258986,20.45880054,142.62,142.57,13.08750435]
[1768319259167,6.05835355,142.61,142.56,13.28796519]
[1768319259366,0.66706584,142.61,142.56,7.89667748]
[1768319259565,7.67941589,142.61,142.56,0.88219467]
[1768319259785,0.66706584,142.6,142.56,0.2]
[1768319259989,0.66706584,142.58,142.56,0.2]
[1768319260165,0.66706584,142.56,142.54,0.2]
[1768319260364,0.63706585,142.56,142.54,0.2]
[1768319260574,0.63706585,142.56,142.51,5.39128771]
[1768319260791,0.63706585,142.56,142.52,5.39128771]
[1768319261081,0.63706585,142.56,142.53,5.39128771]
[1768319261287,19.79425254,142.57,142.53,5.39128771]
[1768319261466,19.79425254,142.57,142.52,5.39128771]
[1768319262159,19.79425254,142.57,142.53,5.39128771]
[1768319262465,0.52341678,142.56,142.53,5.39128771]
[1768319262666,0.52341678,142.56,142.52,5.39128771]
[1768319263067,0.52341678,142.56,142.53,5.39128771]
[1768319263266,13.30341678,142.56,142.53,5.39128771]
[1768319263667,20.31812392,142.56,142.53,5.39128771]
[1768319263863,20.31812392,142.56,142.54,5.39128771]
[1768319264259,0.66562935,142.55,142.52,5.39128771]
[1768319264865,0.66562935,142.55,142.5,0.2]
[1768319265064,0.66562935,142.55,142.52,5.39128771]
[1768319265291,7.68101075,142.55,142.5,0.88219467]
[1768319265589,7.68101075,142.55,142.52,5.39128771]
[1768319265882,7.68101075,142.55,142.5,0.88219467]
[1768319266090,7.68101075,142.55,142.52,5.39128771]
[1768319266273,7.68101075,142.55,142.5,0.88219467]
[1768319266470,29.94437517,142.55,142.5,0.2]
[1768319266685,5.39128771,142.54,142.5,0.2]
[1768319266874,12.8,142.53,142.5,0.2]
[1768319267276,7.01655907,142.52,142.49,2.26834999]
[1768319267486,7.01655907,142.52,142.48,0.2]
[1768319267685,19.81619003,142.53,142.5,2.26834999]
[1768319267984,12.8,142.53,142.5,0.68219467]
[1768319268176,17.53575826,142.57,142.51,2.26834999]
[1768319268382,12.8,142.56,142.5,0.68219467]
[1768319268574,17.53575826,142.57,142.54,2.26834999]
[1768319268575,7.01409833,142.57,142.54,2.26834999]
[1768319268770,7.01409833,142.57,142.56,2.26834999]
[1768319269187,7.01409833,142.57,142.55,2.26834999]
[1768319269390,7.01409833,142.57,142.55,8.76989729]
[1768319269595,7.01409833,142.57,142.51,0.68219467]
[1768319269790,7.01409833,142.57,142.54,8.76989729]
[1768319269973,24.54934417,142.57,142.49,0.68219467]
[1768319270180,24.54934417,142.57,142.52,8.76989729]
[1768319270989,33.31924146,142.57,142.48,7.90069879]
[1768319271178,33.31924146,142.57,142.51,8.76989729]
[1768319271988,8.76989729,142.56,142.51,8.76989729]
[1768319272189,12.8,142.55,142.51,8.76989729]
[1768319272376,24.54934417,142.57,142.51,8.76989729]
[1768319272574,12.8,142.56,142.51,8.76989729]
[1768319272784,12.8,142.56,142.52,8.76989729]
[1768319273197,12.8,142.55,142.49,7.69991691]
[1768319273372,7.01557457,142.54,142.49,7.69991691]
[1768319273689,7.01557457,142.54,142.52,8.76989729]
[1768319274569,12.8,142.55,142.53,8.76989729]
[1768319274774,12.8,142.55,142.54,8.76989729]
[1768319274970,12.8,142.55,142.5,0.68219467]
[1768319275178,12.8,142.55,142.52,8.76989729]
[1768319275586,19.81555338,142.55,142.52,8.76989729]
[1768319275798,12.8,142.54,142.52,8.76989729]
[1768319276298,12.8,142.54,142.5,0.68219467]
[1768319276496,12.8,142.54,142.52,8.76989729]
[1768319276797,12.8,142.54,142.53,8.76989729]
[1768319276998,19.81480817,142.56,142.53,9.45209196]
[1768319277200,19.81480817,142.56,142.54,8.76989729]
[1768319277588,19.81480817,142.56,142.53,0.68219467]
[1768319277783,19.81480817,142.56,142.54,8.76989729]
[1768319278283,19.81480817,142.56,142.53,8.76989729]
[1768319280601,19.81480817,142.56,142.52,0.68219467]
[1768319280896,19.81480817,142.56,142.52,9.45209196]
[1768319281079,19.81461687,142.56,142.52,0.68219467]
[1768319281277,17.53183784,142.6,142.55,9.45209196]
[1768319281491,17.53183784,142.6,142.5,32.54326019]
[1768319281492,19.81311452,142.59,142.57,8.76989729]
[1768319281707,19.81311452,142.59,142.56,0.68219467]
[1768319281882,19.81311452,142.59,142.57,8.76989729]
[1768319282088,19.81311452,142.59,142.55,8.76989729]
[1768319282089,37.34590083,142.59,142.55,8.76989729]
[1768319282396,37.34590083,142.59,142.53,0.68219467]
[1768319282397,46.11579812,142.59,142.53,0.68219467]
[1768319282597,8.76989729,142.58,142.52,8.76989729]
[1768319282904,37.34590083,142.59,142.49,0.68219467]
[1768319283110,8.76989729,142.53,142.48,0.2]
[1768319283289,12.8,142.52,142.48,0.2]
[1768319283693,12.8,142.52,142.48,8.96989729]
[1768319283892,12.8,142.51,142.48,0.2]
[1768319284085,12.8,142.51,142.48,8.96989729]
[1768319284300,7.01754385,142.5,142.48,8.96989729]
[1768319284607,7.01754385,142.5,142.47,9.45209196]
[1768319285596,24.56140349,142.5,142.44,8.96989729]
[1768319285793,33.33130078,142.5,142.44,8.96989729]
[1768319286188,33.33130078,142.5,142.45,8.76989729]
[1768319286189,24.56140349,142.5,142.45,8.76989729]
[1768319286413,24.56140349,142.5,142.46,8.76989729]
[1768319286589,24.56140349,142.5,142.46,9.43669848]
[1768319287010,0.66112317,142.49,142.44,0.2]
[1768319287214,0.65555816,142.47,142.38,7.0230632]
[1768319287515,9.42545545,142.47,142.41,8.76989729]
[1768319287806,9.42545545,142.47,142.38,7.0230632]
[1768319288010,8.76989729,142.46,142.37,0.2]
[1768319288311,7.02049985,142.44,142.4,8.76989729]
[1768319288516,7.02049985,142.44,142.42,8.76989729]
[1768319289009,19.09549985,142.44,142.42,9.43669848]
[1768319289409,19.09549985,142.44,142.42,4.21476855]
[1768319289613,19.79485428,142.44,142.37,7.22378142]
[1768319289814,19.09549985,142.44,142.41,3.54796736]
[1768319290107,19.09549985,142.44,142.38,10.57138698]
[1768319290108,19.09549985,142.44,142.38,3.54796736]
[1768319290309,19.09549985,142.44,142.41,3.54796736]
[1768319290486,40.19471685,142.44,142.37,0.2]
[1768319290690,3.54796736,142.43,142.38,3.54796736]
[1768319291109,3.54796736,142.42,142.37,1e-08]
[1768319291312,3.54796736,142.39,142.37,1e-08]
[1768319292220,12.8,142.38,142.37,1e-08]
[1768319292717,19.82345835,142.38,142.37,1e-08]
[1768319293098,23.37142571,142.38,142.35,1e-08]
[1768319293416,8.7962335,142.36,142.35,1e-08]
[1768319293837,37.38210422,142.38,142.35,1e-08]
[1768319294122,24.58210422,142.38,142.35,1e-08]
[1768319294307,12.8,142.37,142.35,1e-08]
[1768319294513,19.82419134,142.37,142.35,1e-08]
[1768319294718,26.35487937,142.38,142.35,1e-08]
[1768319294719,12.8,142.36,142.35,1e-08]
[1768319295424,22.29558793,142.36,142.35,1e-08]
[1768319296434,12.8,142.36,142.35,1e-08]
[1768319296621,7.02424655,142.37,142.35,1e-08]
[1768319296811,19.82424655,142.37,142.35,1e-08]
[1768319297635,12.8,142.37,142.35,1e-08]
[1768319297801,19.82402576,142.37,142.35,1e-08]
[1768319298003,28.62025926,142.37,142.35,1e-08]
[1768319298515,19.82402576,142.37,142.35,1e-08]
[1768319298716,12.8,142.37,142.35,1e-08]
[1768319298939,19.82396256,142.37,142.35,1e-08]
[1768319299297,7.02247191,142.4,142.35,9.47405905]
[1768319299514,12.8,142.39,142.35,9.47405905]
[1768319299734,12.8,142.39,142.36,8.7962335]
[1768319299907,16.51523955,142.4,142.35,1e-08]
[1768319300102,0.69653414,142.38,142.35,1e-08]
[1768319300622,7.02395167,142.37,142.35,1e-08]
[1768319300811,12.8,142.36,142.35,1e-08]
[1768319303003,0.69653414,142.35,142.3,0.67782554]
[1768319303228,0.69653414,142.39,142.33,0.67782554]
[1768319303537,12.8,142.38,142.34,0.67782554]
[1768319303849,12.8,142.38,142.31,0.67782554]
[1768319303850,0.69653414,142.36,142.31,0.67782554]
[1768319304004,12.8,142.35,142.32,0.67782554]
[1768319304203,0.69653414,142.34,142.31,8.7962335]
[1768319304405,0.69653414,142.34,142.3,8.7962335]
[1768319305225,7.72199639,142.34,142.29,8.1595506]
[1768319305615,7.72199639,142.34,142.3,8.7962335]
[1768319306331,7.72199639,142.34,142.29,9.92795584]
[1768319306531,9.49276764,142.32,142.29,1e-08]
[1768319306711,22.29276764,142.31,142.29,1e-08]
[1768319306905,13.49653414,142.31,142.29,1e-08]
[1768319307100,7.02682114,142.32,142.29,1e-08]
[1768319307318,12.8,142.32,142.29,9.47405905]
[1768319307727,12.8,142.32,142.29,0.67782555]
[1768319308133,12.82,142.33,142.3,0.67782554]
[1768319308333,12.82,142.33,142.31,0.67782554]
[1768319309307,7.02638788,142.33,142.29,9.47405905]
[1768319309516,0.69653414,142.32,142.29,1e-08]
[1768319309828,8.7962335,142.31,142.28,1e-08]
[1768319310034,12.82,142.3,142.28,1e-08]
[1768319310603,13.51653414,142.3,142.28,1e-08]
[1768319311220,7.02543206,142.34,142.3,0.67782554]
[1768319311424,7.02543206,142.34,142.32,8.7962335]
[1768319311729,13.51653414,142.37,142.31,0.67782554]
[1768319311925,22.31276764,142.37,142.32,8.7962335]
[1768319312226,22.31276764,142.37,142.31,0.67782554]
[1768319312227,15.82067856,142.36,142.31,0.67782554]
[1768319312405,7.02444506,142.36,142.32,8.7962335]
[1768319312610,7.02444506,142.36,142.32,9.47405904]
[1768319312821,7.02444506,142.36,142.32,0.67782554]
[1768319313211,7.7209792,142.36,142.28,0.67782555]
[1768319313443,7.02444506,142.36,142.31,0.67782554]
[1768319313644,7.02444506,142.36,142.32,0.67782554]
[1768319314013,7.02444506,142.36,142.32,9.47405904]
[1768319314322,7.7209792,142.36,142.32,8.7962335]
[1768319315746,7.7209792,142.36,142.31,9.47405904]
[1768319315747,25.28209187,142.36,142.31,9.47405904]
[1768319316033,19.84414444,142.37,142.34,0.67753553]
[1768319316243,17.55660139,142.4,142.35,0.67753553]
[1768319316460,28.63919859,142.39,142.35,0.67753553]
[1768319316610,0.66037266,142.37,142.33,0.67753553]
[1768319316811,12.82,142.38,142.33,9.47376903]
[1768319317013,21.6162335,142.38,142.33,9.47376903]
[1768319317232,0.66037266,142.37,142.33,8.7962335]
[1768319317422,12.82,142.38,142.34,8.7962335]
[1768319317841,12.82,142.38,142.34,0.67753553]
[1768319318046,12.82,142.38,142.34,9.47376903]
[1768319318243,12.82,142.38,142.35,9.47376903]
[1768319318746,7.02296509,142.39,142.35,0.67753553]
[1768319318936,7.68333775,142.39,142.34,9.47376903]
[1768319319446,0.66037266,142.38,142.33,8.7962335]
[1768319319645,0.66037266,142.38,142.33,9.47376903]
[1768319320125,0.66037266,142.38,142.34,8.7962335]
[1768319320637,7.02395167,142.37,142.33,0.67753553]
[1768319320835,7.02395167,142.37,142.34,8.7962335]
[1768319321037,7.02395167,142.37,142.33,0.67753553]
[1768319321251,7.68432433,142.37,142.33,9.47376903]
[1768319322131,7.68432433,142.37,142.33,0.67753553]
[1768319322331,38.06420351,142.37,142.32,8.7962335]
[1768319322652,38.06420351,142.37,142.33,8.7962335]
[1768319323029,19.84395167,142.37,142.33,9.47376903]
[1768319323235,7.02366863,142.38,142.35,8.7962335]
[1768319323430,19.84366863,142.38,142.35,8.7962335]
[1768319323743,12.82,142.38,142.36,8.7962335]
[1768319323941,12.82,142.38,142.32,33.38863861]
[1768319323942,13.48037266,142.38,142.34,8.7962335]
[1768319324354,12.82,142.38,142.36,8.7962335]
[1768319324652,0.66037266,142.39,142.35,8.7962335]
[1768319324857,0.66037266,142.39,142.33,0.67753553]
[1768319325054,7.68383101,142.38,142.34,8.7962335]
[1768319325248,0.66037266,142.37,142.33,9.47376903]
[1768319325452,0.66037266,142.37,142.33,8.7962335]
[1768319325649,0.66037266,142.37,142.32,8.7962335]
[1768319325846,19.84345835,142.38,142.34,9.47376903]
[1768319327262,12.82,142.38,142.34,0.67753553]
[1768319327474,20.5040689,142.38,142.35,8.7962335]
[1768319327836,19.84369624,142.38,142.35,8.7962335]
[1768319328153,19.84369624,142.38,142.35,9.47376903]
[1768319328551,12.82,142.38,142.36,8.7962335]
[1768319329058,7.0231666,142.39,142.35,9.47376903]
[1768319329363,7.68353926,142.39,142.35,9.47376903]
[1768319329535,7.0231666,142.39,142.36,0.67753553]
[1768319329739,7.0231666,142.39,142.35,8.7962335]
[1768319329740,7.68353926,142.39,142.35,8.7962335]
[1768319330362,12.82,142.4,142.35,8.7962335]
[1768319330363,7.0226826,142.4,142.37,8.7962335]
[1768319330542,31.0335373,142.43,142.39,8.7962335]
[1768319330959,7.68215581,142.42,142.39,8.7962335]
[1768319331353,7.68215581,142.42,142.39,5.40713015]
[1768319331552,7.02178315,142.42,142.39,5.40713015]
[1768319332259,0.66037266,142.41,142.37,5.40713015]
[1768319332781,7.68264251,142.41,142.37,6.08466568]
[1768319333271,7.68264251,142.41,142.38,5.40713015]
[1768319334471,0.66037266,142.39,142.34,5.40713015]
[1768319334861,7.02345835,142.38,142.34,6.08466568]
[1768319335685,7.02345835,142.38,142.35,6.08466568]
[1768319335874,7.02345835,142.38,142.35,0.67753553]
[1768319338767,24.58210422,142.38,142.33,5.40713015]
[1768319338976,0.66037266,142.34,142.28,1e-08]
[1768319339172,7.02493853,142.35,142.3,5.40713015]
[1768319339475,7.68531119,142.35,142.3,5.40713015]
[1768319339850,7.68531119,142.35,142.28,7.02839472]
[1768319340050,7.68531119,142.35,142.3,5.40713015]
[1768319340051,7.02493853,142.35,142.3,5.40713015]
[1768319340871,7.02493853,142.35,142.31,0.67753553]
[1768319341072,12.43206868,142.35,142.31,0.67753553]
[1768319341266,13.09244134,142.35,142.29,6.08466568]
[1768319341482,7.02493853,142.35,142.32,0.67753553]
[1768319341679,7.02493853,142.35,142.3,6.08466568]
[1768319341860,7.02493853,142.35,142.32,0.67753553]
[1768319342579,18.21816096,142.39,142.34,0.67753553]
[1768319342785,18.22713015,142.38,142.34,0.67753553]
[1768319342981,18.88750281,142.38,142.34,0.67753553]
[1768319343170,25.91096116,142.38,142.34,0.67753553]
[1768319343366,19.84345835,142.38,142.35,0.67753553]
[1768319343574,12.82,142.38,142.35,0.67753553]
[1768319343767,19.8434885,142.38,142.35,0.67753553]
[1768319344381,25.91099131,142.38,142.33,0.67753553]
[1768319344686,0.66037266,142.36,142.31,0.67753553]
[1768319344868,0.66037266,142.36,142.32,0.67961301]
[1768319345074,7.02493853,142.35,142.32,0.67961301]
[1768319345787,7.02493853,142.35,142.31,0.67961301]
[1768319346157,25.25850021,142.35,142.31,0.67961301]
[1768319346362,30.66563036,142.35,142.29,6.08674316]
[1768319346564,30.66563036,142.35,142.29,0.67961301]
[1768319346762,30.66563036,142.35,142.28,1e-08]
[1768319346763,0.67121536,142.33,142.28,1e-08]
[1768319346986,0.67121536,142.32,142.28,1e-08]
[1768319347179,6.07834551,142.34,142.29,0.67961301]
[1768319347381,13.49121536,142.35,142.3,6.08674316]
[1768319347691,13.49121536,142.35,142.28,7.02835822]
[1768319347692,0.67121536,142.34,142.29,5.40713015]
[1768319348073,19.8452403,142.35,142.3,6.08674316]
[1768319348279,20.51645566,142.35,142.3,6.08674316]
[1768319348595,25.92358581,142.35,142.3,6.08674316]
[1768319349086,25.92358581,142.35,142.3,13.11408234]
[1768319349280,22.79056526,142.35,142.3,9.98106179]
[1768319349486,22.79056526,142.35,142.3,2.95372261]
[1768319349679,22.79056526,142.35,142.29,2.95372261]
[1768319349680,0.67121536,142.34,142.29,2.95372261]
[1768319350293,0.67121536,142.3,142.28,1e-08]
[1768319350597,2.2741096,142.3,142.28,1e-08]
[1768319351005,15.0941096,142.31,142.28,1e-08]
[1768319351190,7.02740688,142.3,142.28,1e-08]
[1768319351524,12.82,142.31,142.28,0.67961302]
[1768319351677,12.82,142.31,142.29,0.67961301]
[1768319351883,12.095,142.31,142.3,0.67961301]
[1768319352085,9.29972425,142.34,142.29,2.2741096]
[1768319352291,9.29972425,142.34,142.28,2.95372262]
[1768319352474,9.97093961,142.34,142.28,2.95372262]
[1768319353172,9.97093961,142.34,142.29,0.67961301]
[1768319353378,9.97093961,142.34,142.29,2.95372261]
[1768319353587,7.69683001,142.34,142.29,2.95372261]
[1768319353791,9.97093961,142.34,142.29,2.95372261]
[1768319354798,9.97093961,142.34,142.29,0.67961301]
[1768319355008,2.94532496,142.33,142.28,1e-08]
[1768319355182,2.94532496,142.33,142.28,0.67961302]
[1768319355700,0.67121536,142.33,142.29,0.67961301]
[1768319355879,27.56629281,142.34,142.29,0.67961301]
[1768319356078,25.29218321,142.34,142.29,0.67961301]
[1768319356284,25.29218321,142.34,142.29,2.95372261]
[1768319356487,27.56629281,142.34,142.29,0.67961301]
[1768319357196,7.72860305,142.34,142.29,2.95372261]
[1768319357399,7.02561465,142.34,142.3,0.69870897]
[1768319357600,19.84504341,142.35,142.3,2.97281857]
[1768319358296,10.00214141,142.35,142.3,2.97281857]
[1768319358485,10.00214141,142.35,142.3,0.69870897]
[1768319359398,0.7029884,142.34,142.29,2.2741096]
[1768319359980,0.7029884,142.34,142.28,7.72705789]
[1768319359981,0.7029884,142.33,142.28,2.97281858]
[1768319360384,0.7029884,142.33,142.28,2.27410961]
[1768319361089,0.7029884,142.32,142.28,1e-08]
[1768319361398,7.72990147,142.31,142.28,1e-08]
[1768319361778,0.7029884,142.3,142.28,1e-08]
[1768319363479,7.02790076,142.29,142.27,1e-08]
[1768319364018,7.73088916,142.29,142.27,1e-08]
[1768319364310,0.7029884,142.28,142.27,1e-08]
[1768319364601,7.73058541,142.3,142.27,1e-08]
[1768319364808,0.7029884,142.31,142.27,12.44546709]
[1768319365485,0.7029884,142.33,142.3,5.41666004]
[1768319365885,0.7029884,142.33,142.29,13.14313579]
[1768319366086,0.7029884,142.33,142.3,5.41666004]
[1768319366495,0.7029884,142.33,142.29,5.41666004]
[1768319366701,0.7029884,142.32,142.28,5.41666004]
[1768319367275,0.7029884,142.32,142.27,0.69870897]
[1768319367480,0.7029884,142.27,142.21,3.65952976]
[1768319367677,0.7029884,142.26,142.21,12.44830643]
[1768319368502,0.7029884,142.28,142.24,5.41666004]
[1768319368687,0.7029884,142.28,142.25,5.41666004]
[1768319369200,0.7029884,142.28,142.21,24.61128213]
[1768319369509,7.73155763,142.28,142.24,5.41666004]
[1768319369997,0.7029884,142.27,142.21,7.0317616]
[1768319370209,0.7029884,142.27,142.22,5.41666004]
[1768319370998,0.7029884,142.24,142.2,5.41666004]
[1768319371315,0.7029884,142.26,142.22,5.41666004]
[1768319371498,7.73245599,142.26,142.22,5.41666004]
[1768319371847,0.7029884,142.26,142.22,12.44788867]
[1768319372004,0.7029884,142.26,142.23,5.41666004]
[1768319373008,0.7029884,142.28,142.24,5.41666004]
[1768319373430,0.7029884,142.28,142.22,7.36759712]
[1768319373615,0.7029884,142.28,142.22,24.94599678]
[1768319373932,0.7029884,142.27,142.23,5.41666004]
[1768319374142,0.7029884,142.27,142.24,5.41666004]
[1768319374358,0.7029884,142.31,142.26,5.75302853]
[1768319374637,0.7029884,142.31,142.27,5.41666004]
[1768319375505,7.72994254,142.31,142.27,5.41666004]
[1768319375934,0.65694981,142.3,142.26,5.41666004]
[1768319377209,0.61848457,142.27,142.21,0.65651248]
[1768319377432,0.61848457,142.27,142.23,5.41666004]
[1768319377613,7.64746402,142.27,142.23,5.41666004]
[1768319377930,0.61848457,142.27,142.23,5.41666004]
[1768319378100,13.47694981,142.3,142.24,6.07317252]
[1768319378305,0.65694981,142.29,142.24,6.07317252]
[1768319379118,0.65694981,142.29,142.24,5.41666004]
[1768319379327,19.84742518,142.3,142.25,6.07317252]
[1768319379514,0.65694981,142.29,142.25,6.07317252]
[1768319379715,0.65694981,142.29,142.25,5.41666004]
[1768319380709,13.10065178,142.31,142.26,0.65651248]
[1768319380913,6.07360985,142.3,142.25,7.02963643]
[1768319381621,0.65694981,142.3,142.25,7.68614891]
[1768319381805,0.65694981,142.3,142.25,13.10280895]
[1768319382000,13.10022551,142.32,142.27,0.65651248]
[1768319382216,7.68356547,142.32,142.27,0.65651248]
[1768319382414,13.10022551,142.32,142.27,0.65651248]
[1768319382610,0.65694981,142.31,142.27,0.65651248]
[1768319382819,0.65694981,142.31,142.26,7.02937065]
[1768319383129,0.65694981,142.31,142.26,13.10254317]
[1768319383425,0.65694981,142.31,142.26,7.68588313]
[1768319383632,0.65694981,142.31,142.26,13.10254317]
[1768319384232,0.65694981,142.29,142.24,5.41666004]
[1768319384410,0.65694981,142.29,142.24,7.03036134]
[1768319384609,0.65694981,142.29,142.24,13.10353386]
[1768319385027,0.65694981,142.29,142.25,5.41666004]
[1768319385829,0.65694981,142.29,142.25,12.44644555]
[1768319386048,7.68429526,142.31,142.26,12.44601546]
[1768319386333,0.65694981,142.3,142.26,12.44586225]
[1768319386719,7.68439878,142.3,142.25,13.10288097]
[1768319386922,7.68439878,142.3,142.25,13.10277965]
[1768319387122,7.68439878,142.3,142.26,5.41666004]
[1768319387317,7.68439878,142.3,142.26,2.27525499]
[1768319388112,0.65694981,142.29,142.23,33.23314418]
[1768319388422,0.65694981,142.29,142.25,2.27525499]